Department Of Health,Entity,Date Paid,9AN - Level 9 Account Name,Supplier Name,amount,month
Department Of Health,United Lincolnshire Hospitals NHS Trust,01/02/2023,Agency Nursing Registered,Presto Nursing Ltd,"57,875.54",Feb-23
Department Of Health,United Lincolnshire Hospitals NHS Trust,01/02/2023,Agency Nursing Registered,Presto Nursing Ltd,"44,194.93",Feb-23
Department Of Health,United Lincolnshire Hospitals NHS Trust,01/02/2023,Agency Nursing Registered,Presto Nursing Ltd,"53,699.70",Feb-23
Department Of Health,United Lincolnshire Hospitals NHS Trust,01/02/2023,Purch Hcare From Nhs And Dhsc,North West Anglia Nhs Ft,"46,952.04",Feb-23
Department Of Health,United Lincolnshire Hospitals NHS Trust,01/02/2023,Equipment Medical - Auc Pur,Freelance Surgical Ltd,"88,740.00",Feb-23
Department Of Health,United Lincolnshire Hospitals NHS Trust,07/02/2023,Outsource Service From Non Nhs,The Snoring Disorders Centre Ltd,"39,456.18",Feb-23
Department Of Health,United Lincolnshire Hospitals NHS Trust,07/02/2023,Outsource Service From Non Nhs,Synergy Health (Uk) Ltd,"370,778.78",Feb-23
Department Of Health,United Lincolnshire Hospitals NHS Trust,07/02/2023,Internal Audit Fees,Grant Thornton Uk Llp,"47,250.00",Feb-23
Department Of Health,United Lincolnshire Hospitals NHS Trust,07/02/2023,Clinical Equipment,Stryker Uk Ltd,"100,800.00",Feb-23
Department Of Health,United Lincolnshire Hospitals NHS Trust,07/02/2023,Clinical Equipment,Stryker Uk Ltd,"31,680.00",Feb-23
Department Of Health,United Lincolnshire Hospitals NHS Trust,07/02/2023,Gas,Totalenergies Gas & Power Limited,"86,813.46",Feb-23
Department Of Health,United Lincolnshire Hospitals NHS Trust,07/02/2023,Build Maint Day To Day,Cbre Managed Services Ltd,"31,829.46",Feb-23
Department Of Health,United Lincolnshire Hospitals NHS Trust,07/02/2023,Water & Sewage,Anglian Water Business National Ltd,"59,892.03",Feb-23
Department Of Health,United Lincolnshire Hospitals NHS Trust,07/02/2023,Fuel - Steam,Totalenergies Gas & Power Limited,"88,180.13",Feb-23
Department Of Health,United Lincolnshire Hospitals NHS Trust,07/02/2023,Gas,Totalenergies Gas & Power Limited,"202,720.43",Feb-23
Department Of Health,United Lincolnshire Hospitals NHS Trust,07/02/2023,External Contracts,Mitie Security Limited,"45,058.00",Feb-23
Department Of Health,United Lincolnshire Hospitals NHS Trust,07/02/2023,External Contracts,Mitie Security Limited,"45,058.00",Feb-23
Department Of Health,United Lincolnshire Hospitals NHS Trust,07/02/2023,Fuel - Steam,New Era Fuels Ltd,"32,675.38",Feb-23
Department Of Health,United Lincolnshire Hospitals NHS Trust,07/02/2023,Fuel - Steam,Industrial Energy Services Ltd,"33,640.31",Feb-23
Department Of Health,United Lincolnshire Hospitals NHS Trust,07/02/2023,Gas,Totalenergies Gas & Power Limited,"148,996.66",Feb-23
Department Of Health,United Lincolnshire Hospitals NHS Trust,07/02/2023,Clinical Equip Maint Contracts,Sccl - Nhs Supply Chain (Maintenance),"43,812.77",Feb-23
Department Of Health,United Lincolnshire Hospitals NHS Trust,07/02/2023,Bed Hire,Arjo Uk Limited,"120,701.76",Feb-23
Department Of Health,United Lincolnshire Hospitals NHS Trust,07/02/2023,Ascribe Control: Lincoln,Alloga Uk Ltd,"38,602.20",Feb-23
Department Of Health,United Lincolnshire Hospitals NHS Trust,07/02/2023,Building Works - Auc Pur,Hobson And Porter Ltd,"436,800.00",Feb-23
Department Of Health,United Lincolnshire Hospitals NHS Trust,07/02/2023,Building Works - Auc Pur,John Graham Construction Limited,"746,560.55",Feb-23
Department Of Health,United Lincolnshire Hospitals NHS Trust,07/02/2023,Computer Softw - Auc Pur,Phoenix Software Ltd,"80,503.67",Feb-23
Department Of Health,United Lincolnshire Hospitals NHS Trust,07/02/2023,Computer Softw - Auc Pur,Phoenix Software Ltd,"38,703.55",Feb-23
Department Of Health,United Lincolnshire Hospitals NHS Trust,07/02/2023,Computer Softw - Auc Pur,Phoenix Software Ltd,"41,800.12",Feb-23
Department Of Health,United Lincolnshire Hospitals NHS Trust,07/02/2023,Ascribe Control: Lincoln,Quantum Pharmaceutical Limited,"87,148.55",Feb-23
Department Of Health,United Lincolnshire Hospitals NHS Trust,07/02/2023,Ascribe Control: Lincoln,Quantum Pharmaceutical Limited,"33,228.72",Feb-23
Department Of Health,United Lincolnshire Hospitals NHS Trust,07/02/2023,Ascribe Control: Lincoln,Roche Products Ltd,"36,660.00",Feb-23
Department Of Health,United Lincolnshire Hospitals NHS Trust,10/02/2023,Electricity,Edf Energy 1 Limited,"63,800.17",Feb-23
Department Of Health,United Lincolnshire Hospitals NHS Trust,10/02/2023,Agency Other Stt,Imc Healthcare Services Ltd,"80,884.80",Feb-23
Department Of Health,United Lincolnshire Hospitals NHS Trust,10/02/2023,Clinical Waste,Srcl Ltd T/A Fpm Group,"81,288.91",Feb-23
Department Of Health,United Lincolnshire Hospitals NHS Trust,10/02/2023,Electricity,Edf Energy 1 Limited,"35,300.72",Feb-23
Department Of Health,United Lincolnshire Hospitals NHS Trust,10/02/2023,Electricity,Edf Energy 1 Limited,"100,005.35",Feb-23
Department Of Health,United Lincolnshire Hospitals NHS Trust,14/02/2023,Outsource Service From Non Nhs,The Snoring Disorders Centre Ltd,"157,304.00",Feb-23
Department Of Health,United Lincolnshire Hospitals NHS Trust,14/02/2023,Purch Hcare From Nhs And Dhsc,University Hospitals Of Leicester Nhs Tr,"90,379.50",Feb-23
Department Of Health,United Lincolnshire Hospitals NHS Trust,14/02/2023,Medical Record Storage,Restore Plc - (Was Magnum),"57,244.06",Feb-23
Department Of Health,United Lincolnshire Hospitals NHS Trust,14/02/2023,External Contracts,Mitie Security Limited,"45,058.00",Feb-23
Department Of Health,United Lincolnshire Hospitals NHS Trust,14/02/2023,Gp Specialist Trainee,St Helens & Knowsley Teaching Hospitals,"250,000.00",Feb-23
Department Of Health,United Lincolnshire Hospitals NHS Trust,14/02/2023,Gp Specialist Trainee,St Helens & Knowsley Teaching Hospitals,"250,000.00",Feb-23
Department Of Health,United Lincolnshire Hospitals NHS Trust,14/02/2023,Gp Specialist Trainee,St Helens & Knowsley Teaching Hospitals,"250,000.00",Feb-23
Department Of Health,United Lincolnshire Hospitals NHS Trust,14/02/2023,Gp Specialist Trainee,St Helens & Knowsley Teaching Hospitals,"250,000.00",Feb-23
Department Of Health,United Lincolnshire Hospitals NHS Trust,14/02/2023,Agency Nursing Registered,Group 24 Ltd T/A Nursing 24,"283,757.10",Feb-23
Department Of Health,United Lincolnshire Hospitals NHS Trust,14/02/2023,Agency Nursing Registered,Group 24 Ltd T/A Nursing 24,"251,809.98",Feb-23
Department Of Health,United Lincolnshire Hospitals NHS Trust,14/02/2023,Rowlands Dispensing Costs,L Rowland & Co (Retail) Ltd,"79,537.33",Feb-23
Department Of Health,United Lincolnshire Hospitals NHS Trust,14/02/2023,Pharmacy Contract,L Rowland & Co (Retail) Ltd,"1,419,458.30",Feb-23
Department Of Health,United Lincolnshire Hospitals NHS Trust,14/02/2023,Laboratory External Tests,Northern Lincs&Goole Hospital Nhs Ft,"898,571.00",Feb-23
Department Of Health,United Lincolnshire Hospitals NHS Trust,14/02/2023,Laboratory External Tests,Northern Lincs&Goole Hospital Nhs Ft,"28,496.00",Feb-23
Department Of Health,United Lincolnshire Hospitals NHS Trust,14/02/2023,External Contracts,Mpd Fm Limited,"30,105.50",Feb-23
Department Of Health,United Lincolnshire Hospitals NHS Trust,14/02/2023,Room Hire (Non-Ifrs 16),Progress Housing Association Ltd,"133,539.88",Feb-23
Department Of Health,United Lincolnshire Hospitals NHS Trust,14/02/2023,Equipment Medical - Auc Pur,Ge Medical Systems Ltd,"40,452.00",Feb-23
Department Of Health,United Lincolnshire Hospitals NHS Trust,14/02/2023,National Insurance - Ees,Hm Revenue & Customs,"1,774,016.04",Feb-23
Department Of Health,United Lincolnshire Hospitals NHS Trust,14/02/2023,National Insurance - Ers,Hm Revenue & Customs,"3,077,804.74",Feb-23
Department Of Health,United Lincolnshire Hospitals NHS Trust,14/02/2023,Appentice Levy - Trust,Hm Revenue & Customs,"146,809.00",Feb-23
Department Of Health,United Lincolnshire Hospitals NHS Trust,14/02/2023,Paye - Trust,Hm Revenue & Customs,"4,610,744.14",Feb-23
Department Of Health,United Lincolnshire Hospitals NHS Trust,14/02/2023,Student Loan - Trust,Hm Revenue & Customs,"86,253.00",Feb-23
Department Of Health,United Lincolnshire Hospitals NHS Trust,14/02/2023,National Ins Holt Drs- Ees,Hm Revenue & Customs,"53,431.22",Feb-23
Department Of Health,United Lincolnshire Hospitals NHS Trust,14/02/2023,National Ins Holt Drs- Ers,Hm Revenue & Customs,"193,320.07",Feb-23
Department Of Health,United Lincolnshire Hospitals NHS Trust,14/02/2023,Paye - Holt,Hm Revenue & Customs,"497,580.72",Feb-23
Department Of Health,United Lincolnshire Hospitals NHS Trust,14/02/2023,Ascribe Control: Lincoln,Quantum Pharmaceutical Limited,"36,975.77",Feb-23
Department Of Health,United Lincolnshire Hospitals NHS Trust,14/02/2023,Ascribe Control: Lincoln,Quantum Pharmaceutical Limited,"39,706.62",Feb-23
Department Of Health,United Lincolnshire Hospitals NHS Trust,14/02/2023,Ascribe Control: Lincoln,Quantum Pharmaceutical Limited,"33,306.72",Feb-23
Department Of Health,United Lincolnshire Hospitals NHS Trust,14/02/2023,Supply Chain Control<1yr,Sccl - Nhs Supply Chain (Sales),"339,682.15",Feb-23
Department Of Health,United Lincolnshire Hospitals NHS Trust,14/02/2023,Supply Chain Control<1yr,Sccl - Nhs Supply Chain (Sales),"291,821.77",Feb-23
Department Of Health,United Lincolnshire Hospitals NHS Trust,14/02/2023,Supply Chain Control<1yr,Sccl - Nhs Supply Chain (Sales),"132,790.68",Feb-23
Department Of Health,United Lincolnshire Hospitals NHS Trust,14/02/2023,Supply Chain Control<1yr,Sccl - Nhs Supply Chain (Sales),"349,325.09",Feb-23
Department Of Health,United Lincolnshire Hospitals NHS Trust,14/02/2023,Supply Chain Control<1yr,Sccl - Nhs Supply Chain (Sales),"237,893.96",Feb-23
Department Of Health,United Lincolnshire Hospitals NHS Trust,14/02/2023,Supply Chain Control<1yr,Sccl - Nhs Supply Chain (Sales),"251,396.59",Feb-23
Department Of Health,United Lincolnshire Hospitals NHS Trust,14/02/2023,Supply Chain Control<1yr,Sccl - Nhs Supply Chain (Sales),"318,763.88",Feb-23
Department Of Health,United Lincolnshire Hospitals NHS Trust,14/02/2023,Supply Chain Control<1yr,Sccl - Nhs Supply Chain (Sales),"291,940.86",Feb-23
Department Of Health,United Lincolnshire Hospitals NHS Trust,14/02/2023,Supply Chain Control<1yr,Sccl - Nhs Supply Chain (Sales),"192,122.78",Feb-23
Department Of Health,United Lincolnshire Hospitals NHS Trust,14/02/2023,Supply Chain Control<1yr,Sccl - Nhs Supply Chain (Sales),"329,017.29",Feb-23
Department Of Health,United Lincolnshire Hospitals NHS Trust,14/02/2023,Supply Chain Control<1yr,Sccl - Nhs Supply Chain (Sales),"174,212.24",Feb-23
Department Of Health,United Lincolnshire Hospitals NHS Trust,14/02/2023,Supply Chain Control<1yr,Sccl - Nhs Supply Chain (Sales),"285,629.97",Feb-23
Department Of Health,United Lincolnshire Hospitals NHS Trust,14/02/2023,Supply Chain Control<1yr,Sccl - Nhs Supply Chain (Sales),"189,828.08",Feb-23
Department Of Health,United Lincolnshire Hospitals NHS Trust,14/02/2023,Supply Chain Control<1yr,Sccl - Nhs Supply Chain (Sales),"202,130.11",Feb-23
Department Of Health,United Lincolnshire Hospitals NHS Trust,14/02/2023,Equipment Medical - Auc Pur,Sccl - Nhs Supply Chain (Sales),"145,380.30",Feb-23
Department Of Health,United Lincolnshire Hospitals NHS Trust,14/02/2023,Equipment Medical - Auc Pur,Sccl - Nhs Supply Chain (Sales),"438,801.77",Feb-23
Department Of Health,United Lincolnshire Hospitals NHS Trust,16/02/2023,Progress Housing Rents,Progress Housing Association Ltd,"38,082.79",Feb-23
Department Of Health,United Lincolnshire Hospitals NHS Trust,21/02/2023,Property Lease,Lincoln Science And Innovation Park Ltd,"119,995.20",Feb-23
Department Of Health,United Lincolnshire Hospitals NHS Trust,21/02/2023,Blood Products,Nhs Blood And Transplant,"65,957.74",Feb-23
Department Of Health,United Lincolnshire Hospitals NHS Trust,21/02/2023,Blood Products,Nhs Blood And Transplant,"82,767.39",Feb-23
Department Of Health,United Lincolnshire Hospitals NHS Trust,21/02/2023,Photocopier Usage,Altodigital Networks Ltd,"43,579.08",Feb-23
Department Of Health,United Lincolnshire Hospitals NHS Trust,21/02/2023,Computer Hardware,Altodigital Networks Ltd,"75,707.58",Feb-23
Department Of Health,United Lincolnshire Hospitals NHS Trust,21/02/2023,Other Senior Nurse,Lincolnshire Community Health Services,"114,266.22",Feb-23
Department Of Health,United Lincolnshire Hospitals NHS Trust,21/02/2023,Other Senior Nurse,Lincolnshire Community Health Services,"114,266.22",Feb-23
Department Of Health,United Lincolnshire Hospitals NHS Trust,21/02/2023,Rates,City Of Lincoln Council,"63,942.00",Feb-23
Department Of Health,United Lincolnshire Hospitals NHS Trust,21/02/2023,Rates,South Kesteven District Council,"131,238.00",Feb-23
Department Of Health,United Lincolnshire Hospitals NHS Trust,21/02/2023,Computer Hardware,Micad Systems Uk Ltd,"68,771.22",Feb-23
Department Of Health,United Lincolnshire Hospitals NHS Trust,21/02/2023,Other Consultancies,University Hospitals Of Derby And Burton,"27,976.88",Feb-23
Department Of Health,United Lincolnshire Hospitals NHS Trust,21/02/2023,Clinical Equip Maint Contracts,Sccl - Nhs Supply Chain (Maintenance),"36,697.49",Feb-23
Department Of Health,United Lincolnshire Hospitals NHS Trust,21/02/2023,Clinical Service Contract,Lincolnshire Community Health Services,"47,187.83",Feb-23
Department Of Health,United Lincolnshire Hospitals NHS Trust,21/02/2023,Clinical Service Contract,Lincolnshire Community Health Services,"47,187.83",Feb-23
Department Of Health,United Lincolnshire Hospitals NHS Trust,21/02/2023,Clinical Service Contract,Lincolnshire Community Health Services,"47,187.83",Feb-23
Department Of Health,United Lincolnshire Hospitals NHS Trust,21/02/2023,Financial Ledger System,System C Healthcare Limited,"148,502.72",Feb-23
Department Of Health,United Lincolnshire Hospitals NHS Trust,21/02/2023,Equipment Medical - Auc Pur,Canon Medical Systems Ltd,"62,532.00",Feb-23
Department Of Health,United Lincolnshire Hospitals NHS Trust,21/02/2023,Computer Hardware - Auc Pur,Dell Corporation Limited,"34,860.00",Feb-23
Department Of Health,United Lincolnshire Hospitals NHS Trust,21/02/2023,Computer Hardware - Auc Pur,Dell Corporation Limited,"48,600.00",Feb-23
Department Of Health,United Lincolnshire Hospitals NHS Trust,21/02/2023,Equipment Medical - Auc Pur,Hologic Ltd,"198,000.00",Feb-23
Department Of Health,United Lincolnshire Hospitals NHS Trust,21/02/2023,Equipment Medical - Auc Pur,Sccl - Nhs Supply Chain (Product Sales),"169,955.08",Feb-23
Department Of Health,United Lincolnshire Hospitals NHS Trust,21/02/2023,Equipment Medical - Auc Pur,Varian Medical Systems Uk Ltd,"84,000.00",Feb-23
Department Of Health,United Lincolnshire Hospitals NHS Trust,24/02/2023,Salary Finance Borrow,Salary Finance Limited-Borrow Product,"27,062.16",Feb-23
